Workbook

Sheet Modelo Atmosférico
A2: Equação Barométrica
A3: P (input) | B3: 101325
A4: h (output) | B4: =($B$9/$B$10)*((POWER(B3/$B$14,(-$B$11*$B$10)/($B$12*$B$13)))-1) -> 0.0
A6: h (input) | B6: 0
A7: P (output) | B7: =B14*EXP(-B12*B13*B6/(B11*B9)) -> 101325.00
A9: EQ1_Tb | B9: =273.15+C9 -> 288.15 | C9: 15 | D9: ºC
A10: EQ1_Lb | B10: -0.0065
A11: EQ1_R | B11: 8.31432
A12: EQ1_g | B12: 9.80665
A13: EQ1_M | B13: 0.0289644
A14: EQ1_Pb | B14: 101325
A16: coef1 | B16: 44307
A17: index1 | B17: 0.2119
A18: coef2 | B18: 44330
A19: index2 | B19: 0.1903

Sheet Leitura Dados de Vôo
A1: Vôo Nº: | D1: Data:
E2: Altitude (m)
A3: Pressão no Solo (Pa) | D3: 94818.62 | E3: =IF(D3<>0,('Modelo Atmosférico'!$B$9/'Modelo Atmosférico'!$B$10)*((POWER(D3/'Modelo Atmosférico'!$B$14,(-'Modelo Atmosférico'!$B$11*'Modelo Atmosférico'!$B$10)/('Modelo Atmosférico'!$B$12*'Modelo Atmosférico'!$B$13)))-1),0) -> 556.3 | F3: Apogeu (m)
A4: Pressão no Apogeu (Pa) | D4: 79911.09 | E4: =IF(D4<>0,('Modelo Atmosférico'!$B$9/'Modelo Atmosférico'!$B$10)*((POWER(D4/'Modelo Atmosférico'!$B$14,(-'Modelo Atmosférico'!$B$11*'Modelo Atmosférico'!$B$10)/('Modelo Atmosférico'!$B$12*'Modelo Atmosférico'!$B$13)))-1),0) -> 1958.0 | F4: =E4-E3 -> 1401.7
C6: Altímetro
A7: Tempo (s) | C7: Dados Brutos | D7: Pressao | E7: Altitude | F7: Altura
A8: 0 | C8: 30044 | D8: 92048.75 | E8: =IF(D8<>0,('Modelo Atmosférico'!$B$9/'Modelo Atmosférico'!$B$10)*((POWER(D8/'Modelo Atmosférico'!$B$14,(-'Modelo Atmosférico'!$B$11*'Modelo Atmosférico'!$B$10)/('Modelo Atmosférico'!$B$12*'Modelo Atmosférico'!$B$13)))-1),0) -> 802.5 | F8: =IF(D8<>0,E8-$E$3,0) -> 246.2
A9: 0.192 | C9: 30063 | D9: 91996.1 | E9: =IF(D9<>0,('Modelo Atmosférico'!$B$9/'Modelo Atmosférico'!$B$10)*((POWER(D9/'Modelo Atmosférico'!$B$14,(-'Modelo Atmosférico'!$B$11*'Modelo Atmosférico'!$B$10)/('Modelo Atmosférico'!$B$12*'Modelo Atmosférico'!$B$13)))-1),0) -> 807.2 | F9: 251.0
A10: 0.384 | C10: 29989 | D10: 92201.19 | E10: =IF(D10<>0,('Modelo Atmosférico'!$B$9/'Modelo Atmosférico'!$B$10)*((POWER(D10/'Modelo Atmosférico'!$B$14,(-'Modelo Atmosférico'!$B$11*'Modelo Atmosférico'!$B$10)/('Modelo Atmosférico'!$B$12*'Modelo Atmosférico'!$B$13)))-1),0) -> 788.8 | F10: 232.5
A11: 0.576 | C11: 29142 | D11: 94549.56 | E11: =IF(D11<>0,('Modelo Atmosférico'!$B$9/'Modelo Atmosférico'!$B$10)*((POWER(D11/'Modelo Atmosférico'!$B$14,(-'Modelo Atmosférico'!$B$11*'Modelo Atmosférico'!$B$10)/('Modelo Atmosférico'!$B$12*'Modelo Atmosférico'!$B$13)))-1),0) -> 579.9 | F11: 23.7
A12: 0.768 | C12: 29174 | D12: 94460.8 | E12: =IF(D12<>0,('Modelo Atmosférico'!$B$9/'Modelo Atmosférico'!$B$10)*((POWER(D12/'Modelo Atmosférico'!$B$14,(-'Modelo Atmosférico'!$B$11*'Modelo Atmosférico'!$B$10)/('Modelo Atmosférico'!$B$12*'Modelo Atmosférico'!$B$13)))-1),0) -> 587.7 | F12: 31.5
A13: 0.96 | C13: 29196 | D13: 94399.78 | E13: =IF(D13<>0,('Modelo Atmosférico'!$B$9/'Modelo Atmosférico'!$B$10)*((POWER(D13/'Modelo Atmosférico'!$B$14,(-'Modelo Atmosférico'!$B$11*'Modelo Atmosférico'!$B$10)/('Modelo Atmosférico'!$B$12*'Modelo Atmosférico'!$B$13)))-1),0) -> 593.1 | F13: 36.9
A14: 1.152 | C14: 29219 | D14: 94335.98 | E14: =IF(D14<>0,('Modelo Atmosférico'!$B$9/'Modelo Atmosférico'!$B$10)*((POWER(D14/'Modelo Atmosférico'!$B$14,(-'Modelo Atmosférico'!$B$11*'Modelo Atmosférico'!$B$10)/('Modelo Atmosférico'!$B$12*'Modelo Atmosférico'!$B$13)))-1),0) -> 598.7 | F14: 42.5
A15: 1.344 | C15: 29236 | D15: 94288.84 | E15: =IF(D15<>0,('Modelo Atmosférico'!$B$9/'Modelo Atmosférico'!$B$10)*((POWER(D15/'Modelo Atmosférico'!$B$14,(-'Modelo Atmosférico'!$B$11*'Modelo Atmosférico'!$B$10)/('Modelo Atmosférico'!$B$12*'Modelo Atmosférico'!$B$13)))-1),0) -> 602.9 | F15: 46.6
A16: 1.536 | C16: 29252 | D16: 94244.47 | E16: =IF(D16<>0,('Modelo Atmosférico'!$B$9/'Modelo Atmosférico'!$B$10)*((POWER(D16/'Modelo Atmosférico'!$B$14,(-'Modelo Atmosférico'!$B$11*'Modelo Atmosférico'!$B$10)/('Modelo Atmosférico'!$B$12*'Modelo Atmosférico'!$B$13)))-1),0) -> 606.8 | F16: 50.6
A17: 1.728 | C17: 29264 | D17: 94211.19 | E17: =IF(D17<>0,('Modelo Atmosférico'!$B$9/'Modelo Atmosférico'!$B$10)*((POWER(D17/'Modelo Atmosférico'!$B$14,(-'Modelo Atmosférico'!$B$11*'Modelo Atmosférico'!$B$10)/('Modelo Atmosférico'!$B$12*'Modelo Atmosférico'!$B$13)))-1),0) -> 609.8 | F17: 53.5
A18: 1.92 | C18: 29272 | D18: 94189 | E18: =IF(D18<>0,('Modelo Atmosférico'!$B$9/'Modelo Atmosférico'!$B$10)*((POWER(D18/'Modelo Atmosférico'!$B$14,(-'Modelo Atmosférico'!$B$11*'Modelo Atmosférico'!$B$10)/('Modelo Atmosférico'!$B$12*'Modelo Atmosférico'!$B$13)))-1),0) -> 611.7 | F18: 55.5
A19: 2.112 | C19: 29276 | D19: 94177.91 | E19: =IF(D19<>0,('Modelo Atmosférico'!$B$9/'Modelo Atmosférico'!$B$10)*((POWER(D19/'Modelo Atmosférico'!$B$14,(-'Modelo Atmosférico'!$B$11*'Modelo Atmosférico'!$B$10)/('Modelo Atmosférico'!$B$12*'Modelo Atmosférico'!$B$13)))-1),0) -> 612.7 | F19: 56.4
A20: 2.304 | C20: 29282 | D20: 94161.27 | E20: =IF(D20<>0,('Modelo Atmosférico'!$B$9/'Modelo Atmosférico'!$B$10)*((POWER(D20/'Modelo Atmosférico'!$B$14,(-'Modelo Atmosférico'!$B$11*'Modelo Atmosférico'!$B$10)/('Modelo Atmosférico'!$B$12*'Modelo Atmosférico'!$B$13)))-1),0) -> 614.2 | F20: 57.9
A21: 2.496 | C21: 29292 | D21: 94133.53 | E21: =IF(D21<>0,('Modelo Atmosférico'!$B$9/'Modelo Atmosférico'!$B$10)*((POWER(D21/'Modelo Atmosférico'!$B$14,(-'Modelo Atmosférico'!$B$11*'Modelo Atmosférico'!$B$10)/('Modelo Atmosférico'!$B$12*'Modelo Atmosférico'!$B$13)))-1),0) -> 616.6 | F21: 60.4
A22: 2.688 | C22: 29301 | D22: 94108.57 | E22: =IF(D22<>0,('Modelo Atmosférico'!$B$9/'Modelo Atmosférico'!$B$10)*((POWER(D22/'Modelo Atmosférico'!$B$14,(-'Modelo Atmosférico'!$B$11*'Modelo Atmosférico'!$B$10)/('Modelo Atmosférico'!$B$12*'Modelo Atmosférico'!$B$13)))-1),0) -> 618.8 | F22: 62.6
A23: 2.88 | C23: 27073 | D23: 100294.05 | E23: =IF(D23<>0,('Modelo Atmosférico'!$B$9/'Modelo Atmosférico'!$B$10)*((POWER(D23/'Modelo Atmosférico'!$B$14,(-'Modelo Atmosférico'!$B$11*'Modelo Atmosférico'!$B$10)/('Modelo Atmosférico'!$B$12*'Modelo Atmosférico'!$B$13)))-1),0) -> 86.2 | F23: -470.1
A24: 3.072 | C24: 29307 | D24: 94091.93 | E24: =IF(D24<>0,('Modelo Atmosférico'!$B$9/'Modelo Atmosférico'!$B$10)*((POWER(D24/'Modelo Atmosférico'!$B$14,(-'Modelo Atmosférico'!$B$11*'Modelo Atmosférico'!$B$10)/('Modelo Atmosférico'!$B$12*'Modelo Atmosférico'!$B$13)))-1),0) -> 620.3 | F24: 64.0
A25: 3.264 | C25: 29323 | D25: 94047.56 | E25: =IF(D25<>0,('Modelo Atmosférico'!$B$9/'Modelo Atmosférico'!$B$10)*((POWER(D25/'Modelo Atmosférico'!$B$14,(-'Modelo Atmosférico'!$B$11*'Modelo Atmosférico'!$B$10)/('Modelo Atmosférico'!$B$12*'Modelo Atmosférico'!$B$13)))-1),0) -> 624.2 | F25: 68.0
A26: 3.456 | C26: 29329 | D26: 94030.92 | E26: =IF(D26<>0,('Modelo Atmosférico'!$B$9/'Modelo Atmosférico'!$B$10)*((POWER(D26/'Modelo Atmosférico'!$B$14,(-'Modelo Atmosférico'!$B$11*'Modelo Atmosférico'!$B$10)/('Modelo Atmosférico'!$B$12*'Modelo Atmosférico'!$B$13)))-1),0) -> 625.7 | F26: 69.4
A27: 3.648 | C27: 29328 | D27: 94033.7 | E27: =IF(D27<>0,('Modelo Atmosférico'!$B$9/'Modelo Atmosférico'!$B$10)*((POWER(D27/'Modelo Atmosférico'!$B$14,(-'Modelo Atmosférico'!$B$11*'Modelo Atmosférico'!$B$10)/('Modelo Atmosférico'!$B$12*'Modelo Atmosférico'!$B$13)))-1),0) -> 625.4 | F27: 69.2
A28: 3.84 | C28: 29331 | D28: 94025.38 | E28: =IF(D28<>0,('Modelo Atmosférico'!$B$9/'Modelo Atmosférico'!$B$10)*((POWER(D28/'Modelo Atmosférico'!$B$14,(-'Modelo Atmosférico'!$B$11*'Modelo Atmosférico'!$B$10)/('Modelo Atmosférico'!$B$12*'Modelo Atmosférico'!$B$13)))-1),0) -> 626.2 | F28: 69.9
A29: 4.032 | C29: 29331 | D29: 94025.38 | E29: =IF(D29<>0,('Modelo Atmosférico'!$B$9/'Modelo Atmosférico'!$B$10)*((POWER(D29/'Modelo Atmosférico'!$B$14,(-'Modelo Atmosférico'!$B$11*'Modelo Atmosférico'!$B$10)/('Modelo Atmosférico'!$B$12*'Modelo Atmosférico'!$B$13)))-1),0) -> 626.2 | F29: 69.9
A30: 4.224 | C30: 29330 | D30: 94028.15 | E30: =IF(D30<>0,('Modelo Atmosférico'!$B$9/'Modelo Atmosférico'!$B$10)*((POWER(D30/'Modelo Atmosférico'!$B$14,(-'Modelo Atmosférico'!$B$11*'Modelo Atmosférico'!$B$10)/('Modelo Atmosférico'!$B$12*'Modelo Atmosférico'!$B$13)))-1),0) -> 625.9 | F30: 69.7
A31: 4.416 | C31: 29323 | D31: 94047.56 | E31: =IF(D31<>0,('Modelo Atmosférico'!$B$9/'Modelo Atmosférico'!$B$10)*((POWER(D31/'Modelo Atmosférico'!$B$14,(-'Modelo Atmosférico'!$B$11*'Modelo Atmosférico'!$B$10)/('Modelo Atmosférico'!$B$12*'Modelo Atmosférico'!$B$13)))-1),0) -> 624.2 | F31: 68.0
A32: 4.608 | C32: 29319 | D32: 94058.66 | E32: =IF(D32<>0,('Modelo Atmosférico'!$B$9/'Modelo Atmosférico'!$B$10)*((POWER(D32/'Modelo Atmosférico'!$B$14,(-'Modelo Atmosférico'!$B$11*'Modelo Atmosférico'!$B$10)/('Modelo Atmosférico'!$B$12*'Modelo Atmosférico'!$B$13)))-1),0) -> 623.2 | F32: 67.0
A33: 4.8 | C33: 29313 | D33: 94075.3 | E33: =IF(D33<>0,('Modelo Atmosférico'!$B$9/'Modelo Atmosférico'!$B$10)*((POWER(D33/'Modelo Atmosférico'!$B$14,(-'Modelo Atmosférico'!$B$11*'Modelo Atmosférico'!$B$10)/('Modelo Atmosférico'!$B$12*'Modelo Atmosférico'!$B$13)))-1),0) -> 621.8 | F33: 65.5
A34: 4.992 | C34: 29294 | D34: 94127.98 | E34: =IF(D34<>0,('Modelo Atmosférico'!$B$9/'Modelo Atmosférico'!$B$10)*((POWER(D34/'Modelo Atmosférico'!$B$14,(-'Modelo Atmosférico'!$B$11*'Modelo Atmosférico'!$B$10)/('Modelo Atmosférico'!$B$12*'Modelo Atmosférico'!$B$13)))-1),0) -> 617.1 | F34: =IF(D34<>0,E34-$E$3,0) -> 60.8
A35: 5.184 | C35: 29279 | D35: 94169.59 | E35: =IF(D35<>0,('Modelo Atmosférico'!$B$9/'Modelo Atmosférico'!$B$10)*((POWER(D35/'Modelo Atmosférico'!$B$14,(-'Modelo Atmosférico'!$B$11*'Modelo Atmosférico'!$B$10)/('Modelo Atmosférico'!$B$12*'Modelo Atmosférico'!$B$13)))-1),0) -> 613.4 | F35: =IF(D35<>0,E35-$E$3,0) -> 57.2
A36: 5.376 | C36: 29268 | D36: 94200.09 | E36: =IF(D36<>0,('Modelo Atmosférico'!$B$9/'Modelo Atmosférico'!$B$10)*((POWER(D36/'Modelo Atmosférico'!$B$14,(-'Modelo Atmosférico'!$B$11*'Modelo Atmosférico'!$B$10)/('Modelo Atmosférico'!$B$12*'Modelo Atmosférico'!$B$13)))-1),0) -> 610.7 | F36: 54.5
A37: 5.568 | C37: 29257 | D37: 94230.59 | E37: =IF(D37<>0,('Modelo Atmosférico'!$B$9/'Modelo Atmosférico'!$B$10)*((POWER(D37/'Modelo Atmosférico'!$B$14,(-'Modelo Atmosférico'!$B$11*'Modelo Atmosférico'!$B$10)/('Modelo Atmosférico'!$B$12*'Modelo Atmosférico'!$B$13)))-1),0) -> 608.0 | F37: 51.8
A38: 5.76 | C38: 29251 | D38: 94247.23 | E38: =IF(D38<>0,('Modelo Atmosférico'!$B$9/'Modelo Atmosférico'!$B$10)*((POWER(D38/'Modelo Atmosférico'!$B$14,(-'Modelo Atmosférico'!$B$11*'Modelo Atmosférico'!$B$10)/('Modelo Atmosférico'!$B$12*'Modelo Atmosférico'!$B$13)))-1),0) -> 606.6 | F38: 50.3
A39: 5.952 | C39: 29243 | D39: 94269.42 | E39: =IF(D39<>0,('Modelo Atmosférico'!$B$9/'Modelo Atmosférico'!$B$10)*((POWER(D39/'Modelo Atmosférico'!$B$14,(-'Modelo Atmosférico'!$B$11*'Modelo Atmosférico'!$B$10)/('Modelo Atmosférico'!$B$12*'Modelo Atmosférico'!$B$13)))-1),0) -> 604.6 | F39: 48.4
A40: 6.144 | C40: 29239 | D40: 94280.52 | E40: =IF(D40<>0,('Modelo Atmosférico'!$B$9/'Modelo Atmosférico'!$B$10)*((POWER(D40/'Modelo Atmosférico'!$B$14,(-'Modelo Atmosférico'!$B$11*'Modelo Atmosférico'!$B$10)/('Modelo Atmosférico'!$B$12*'Modelo Atmosférico'!$B$13)))-1),0) -> 603.6 | F40: 47.4
A41: 6.336 | C41: 29234 | D41: 94294.39 | E41: =IF(D41<>0,('Modelo Atmosférico'!$B$9/'Modelo Atmosférico'!$B$10)*((POWER(D41/'Modelo Atmosférico'!$B$14,(-'Modelo Atmosférico'!$B$11*'Modelo Atmosférico'!$B$10)/('Modelo Atmosférico'!$B$12*'Modelo Atmosférico'!$B$13)))-1),0) -> 602.4 | F41: 46.2
A42: 6.528 | C42: 29221 | D42: 94330.44 | E42: =IF(D42<>0,('Modelo Atmosférico'!$B$9/'Modelo Atmosférico'!$B$10)*((POWER(D42/'Modelo Atmosférico'!$B$14,(-'Modelo Atmosférico'!$B$11*'Modelo Atmosférico'!$B$10)/('Modelo Atmosférico'!$B$12*'Modelo Atmosférico'!$B$13)))-1),0) -> 599.2 | F42: 43.0
A43: 6.72 | C43: 29205 | D43: 94374.81 | E43: =IF(D43<>0,('Modelo Atmosférico'!$B$9/'Modelo Atmosférico'!$B$10)*((POWER(D43/'Modelo Atmosférico'!$B$14,(-'Modelo Atmosférico'!$B$11*'Modelo Atmosférico'!$B$10)/('Modelo Atmosférico'!$B$12*'Modelo Atmosférico'!$B$13)))-1),0) -> 595.3 | F43: 39.1
A44: 6.912 | C44: 29188 | D44: 94421.97 | E44: =IF(D44<>0,('Modelo Atmosférico'!$B$9/'Modelo Atmosférico'!$B$10)*((POWER(D44/'Modelo Atmosférico'!$B$14,(-'Modelo Atmosférico'!$B$11*'Modelo Atmosférico'!$B$10)/('Modelo Atmosférico'!$B$12*'Modelo Atmosférico'!$B$13)))-1),0) -> 591.2 | F44: 34.9
A45: 7.104 | C45: 29172 | D45: 94466.34 | E45: =IF(D45<>0,('Modelo Atmosférico'!$B$9/'Modelo Atmosférico'!$B$10)*((POWER(D45/'Modelo Atmosférico'!$B$14,(-'Modelo Atmosférico'!$B$11*'Modelo Atmosférico'!$B$10)/('Modelo Atmosférico'!$B$12*'Modelo Atmosférico'!$B$13)))-1),0) -> 587.2 | F45: 31.0
A46: 7.296 | C46: 29155 | D46: 94513.5 | E46: =IF(D46<>0,('Modelo Atmosférico'!$B$9/'Modelo Atmosférico'!$B$10)*((POWER(D46/'Modelo Atmosférico'!$B$14,(-'Modelo Atmosférico'!$B$11*'Modelo Atmosférico'!$B$10)/('Modelo Atmosférico'!$B$12*'Modelo Atmosférico'!$B$13)))-1),0) -> 583.1 | F46: 26.8
A47: 7.488 | C47: 29135 | D47: 94568.97 | E47: =IF(D47<>0,('Modelo Atmosférico'!$B$9/'Modelo Atmosférico'!$B$10)*((POWER(D47/'Modelo Atmosférico'!$B$14,(-'Modelo Atmosférico'!$B$11*'Modelo Atmosférico'!$B$10)/('Modelo Atmosférico'!$B$12*'Modelo Atmosférico'!$B$13)))-1),0) -> 578.2 | F47: 22.0
A48: 7.68 | C48: 29100 | D48: 94666.05 | E48: =IF(D48<>0,('Modelo Atmosférico'!$B$9/'Modelo Atmosférico'!$B$10)*((POWER(D48/'Modelo Atmosférico'!$B$14,(-'Modelo Atmosférico'!$B$11*'Modelo Atmosférico'!$B$10)/('Modelo Atmosférico'!$B$12*'Modelo Atmosférico'!$B$13)))-1),0) -> 569.7 | F48: 13.4
A49: 7.872 | C49: 29064 | D49: 94765.91 | E49: =IF(D49<>0,('Modelo Atmosférico'!$B$9/'Modelo Atmosférico'!$B$10)*((POWER(D49/'Modelo Atmosférico'!$B$14,(-'Modelo Atmosférico'!$B$11*'Modelo Atmosférico'!$B$10)/('Modelo Atmosférico'!$B$12*'Modelo Atmosférico'!$B$13)))-1),0) -> 560.9 | F49: 4.6
A50: 8.064 | C50: 34250 | D50: 80416.16 | E50: =IF(D50<>0,('Modelo Atmosférico'!$B$9/'Modelo Atmosférico'!$B$10)*((POWER(D50/'Modelo Atmosférico'!$B$14,(-'Modelo Atmosférico'!$B$11*'Modelo Atmosférico'!$B$10)/('Modelo Atmosférico'!$B$12*'Modelo Atmosférico'!$B$13)))-1),0) -> 1907.1 | F50: 1350.9
A51: 8.256 | C51: 34295 | D51: 80291.95 | E51: =IF(D51<>0,('Modelo Atmosférico'!$B$9/'Modelo Atmosférico'!$B$10)*((POWER(D51/'Modelo Atmosférico'!$B$14,(-'Modelo Atmosférico'!$B$11*'Modelo Atmosférico'!$B$10)/('Modelo Atmosférico'!$B$12*'Modelo Atmosférico'!$B$13)))-1),0) -> 1919.6 | F51: 1363.3
A52: 8.448 | C52: 34433 | D52: 79911.09 | E52: =IF(D52<>0,('Modelo Atmosférico'!$B$9/'Modelo Atmosférico'!$B$10)*((POWER(D52/'Modelo Atmosférico'!$B$14,(-'Modelo Atmosférico'!$B$11*'Modelo Atmosférico'!$B$10)/('Modelo Atmosférico'!$B$12*'Modelo Atmosférico'!$B$13)))-1),0) -> 1958.0 | F52: 1401.7
A53: 8.64 | C53: 34334 | D53: 80184.31 | E53: =IF(D53<>0,('Modelo Atmosférico'!$B$9/'Modelo Atmosférico'!$B$10)*((POWER(D53/'Modelo Atmosférico'!$B$14,(-'Modelo Atmosférico'!$B$11*'Modelo Atmosférico'!$B$10)/('Modelo Atmosférico'!$B$12*'Modelo Atmosférico'!$B$13)))-1),0) -> 1930.4 | F53: 1374.2
A54: 8.832 | C54: 34312 | D54: 80245.03 | E54: =IF(D54<>0,('Modelo Atmosférico'!$B$9/'Modelo Atmosférico'!$B$10)*((POWER(D54/'Modelo Atmosférico'!$B$14,(-'Modelo Atmosférico'!$B$11*'Modelo Atmosférico'!$B$10)/('Modelo Atmosférico'!$B$12*'Modelo Atmosférico'!$B$13)))-1),0) -> 1924.3 | F54: 1368.1
A55: 9.024 | C55: 34272 | D55: 80355.44 | E55: =IF(D55<>0,('Modelo Atmosférico'!$B$9/'Modelo Atmosférico'!$B$10)*((POWER(D55/'Modelo Atmosférico'!$B$14,(-'Modelo Atmosférico'!$B$11*'Modelo Atmosférico'!$B$10)/('Modelo Atmosférico'!$B$12*'Modelo Atmosférico'!$B$13)))-1),0) -> 1913.2 | F55: 1357.0
A56: 9.216 | C56: 34270 | D56: 80360.95 | E56: =IF(D56<>0,('Modelo Atmosférico'!$B$9/'Modelo Atmosférico'!$B$10)*((POWER(D56/'Modelo Atmosférico'!$B$14,(-'Modelo Atmosférico'!$B$11*'Modelo Atmosférico'!$B$10)/('Modelo Atmosférico'!$B$12*'Modelo Atmosférico'!$B$13)))-1),0) -> 1912.7 | F56: 1356.4
A57: 9.408 | C57: 34271 | D57: 80358.19 | E57: =IF(D57<>0,('Modelo Atmosférico'!$B$9/'Modelo Atmosférico'!$B$10)*((POWER(D57/'Modelo Atmosférico'!$B$14,(-'Modelo Atmosférico'!$B$11*'Modelo Atmosférico'!$B$10)/('Modelo Atmosférico'!$B$12*'Modelo Atmosférico'!$B$13)))-1),0) -> 1913.0 | F57: 1356.7
A58: 9.6 | C58: 34271 | D58: 80358.19 | E58: =IF(D58<>0,('Modelo Atmosférico'!$B$9/'Modelo Atmosférico'!$B$10)*((POWER(D58/'Modelo Atmosférico'!$B$14,(-'Modelo Atmosférico'!$B$11*'Modelo Atmosférico'!$B$10)/('Modelo Atmosférico'!$B$12*'Modelo Atmosférico'!$B$13)))-1),0) -> 1913.0 | F58: 1356.7
A59: 9.792 | C59: 34271 | D59: 80358.19 | E59: =IF(D59<>0,('Modelo Atmosférico'!$B$9/'Modelo Atmosférico'!$B$10)*((POWER(D59/'Modelo Atmosférico'!$B$14,(-'Modelo Atmosférico'!$B$11*'Modelo Atmosférico'!$B$10)/('Modelo Atmosférico'!$B$12*'Modelo Atmosférico'!$B$13)))-1),0) -> 1913.0 | F59: 1356.7
A60: 9.984 | C60: 34272 | D60: 80355.44 | E60: =IF(D60<>0,('Modelo Atmosférico'!$B$9/'Modelo Atmosférico'!$B$10)*((POWER(D60/'Modelo Atmosférico'!$B$14,(-'Modelo Atmosférico'!$B$11*'Modelo Atmosférico'!$B$10)/('Modelo Atmosférico'!$B$12*'Modelo Atmosférico'!$B$13)))-1),0) -> 1913.2 | F60: 1357.0
A61: 10.176 | C61: 34274 | D61: 80349.91 | E61: =IF(D61<>0,('Modelo Atmosférico'!$B$9/'Modelo Atmosférico'!$B$10)*((POWER(D61/'Modelo Atmosférico'!$B$14,(-'Modelo Atmosférico'!$B$11*'Modelo Atmosférico'!$B$10)/('Modelo Atmosférico'!$B$12*'Modelo Atmosférico'!$B$13)))-1),0) -> 1913.8 | F61: 1357.5
A62: 10.368 | C62: 34273 | D62: 80352.67 | E62: =IF(D62<>0,('Modelo Atmosférico'!$B$9/'Modelo Atmosférico'!$B$10)*((POWER(D62/'Modelo Atmosférico'!$B$14,(-'Modelo Atmosférico'!$B$11*'Modelo Atmosférico'!$B$10)/('Modelo Atmosférico'!$B$12*'Modelo Atmosférico'!$B$13)))-1),0) -> 1913.5 | F62: 1357.2
A63: 10.56 | C63: 34264 | D63: 80377.52 | E63: =IF(D63<>0,('Modelo Atmosférico'!$B$9/'Modelo Atmosférico'!$B$10)*((POWER(D63/'Modelo Atmosférico'!$B$14,(-'Modelo Atmosférico'!$B$11*'Modelo Atmosférico'!$B$10)/('Modelo Atmosférico'!$B$12*'Modelo Atmosférico'!$B$13)))-1),0) -> 1911.0 | F63: 1354.8
A64: 10.752 | C64: 34254 | D64: 80405.11 | E64: =IF(D64<>0,('Modelo Atmosférico'!$B$9/'Modelo Atmosférico'!$B$10)*((POWER(D64/'Modelo Atmosférico'!$B$14,(-'Modelo Atmosférico'!$B$11*'Modelo Atmosférico'!$B$10)/('Modelo Atmosférico'!$B$12*'Modelo Atmosférico'!$B$13)))-1),0) -> 1908.2 | F64: 1352.0
A65: 10.944 | C65: 34249 | D65: 80418.91 | E65: =IF(D65<>0,('Modelo Atmosférico'!$B$9/'Modelo Atmosférico'!$B$10)*((POWER(D65/'Modelo Atmosférico'!$B$14,(-'Modelo Atmosférico'!$B$11*'Modelo Atmosférico'!$B$10)/('Modelo Atmosférico'!$B$12*'Modelo Atmosférico'!$B$13)))-1),0) -> 1906.9 | F65: 1350.6
A66: 11.136 | C66: 34244 | D66: 80432.72 | E66: =IF(D66<>0,('Modelo Atmosférico'!$B$9/'Modelo Atmosférico'!$B$10)*((POWER(D66/'Modelo Atmosférico'!$B$14,(-'Modelo Atmosférico'!$B$11*'Modelo Atmosférico'!$B$10)/('Modelo Atmosférico'!$B$12*'Modelo Atmosférico'!$B$13)))-1),0) -> 1905.5 | F66: 1349.2
A67: 11.328 | C67: 34243 | D67: 80435.47 | E67: =IF(D67<>0,('Modelo Atmosférico'!$B$9/'Modelo Atmosférico'!$B$10)*((POWER(D67/'Modelo Atmosférico'!$B$14,(-'Modelo Atmosférico'!$B$11*'Modelo Atmosférico'!$B$10)/('Modelo Atmosférico'!$B$12*'Modelo Atmosférico'!$B$13)))-1),0) -> 1905.2 | F67: 1348.9
A68: 11.52 | C68: 34239 | D68: 80446.52 | E68: =IF(D68<>0,('Modelo Atmosférico'!$B$9/'Modelo Atmosférico'!$B$10)*((POWER(D68/'Modelo Atmosférico'!$B$14,(-'Modelo Atmosférico'!$B$11*'Modelo Atmosférico'!$B$10)/('Modelo Atmosférico'!$B$12*'Modelo Atmosférico'!$B$13)))-1),0) -> 1904.1 | F68: 1347.8
A69: 11.712 | C69: 34235 | D69: 80457.56 | E69: =IF(D69<>0,('Modelo Atmosférico'!$B$9/'Modelo Atmosférico'!$B$10)*((POWER(D69/'Modelo Atmosférico'!$B$14,(-'Modelo Atmosférico'!$B$11*'Modelo Atmosférico'!$B$10)/('Modelo Atmosférico'!$B$12*'Modelo Atmosférico'!$B$13)))-1),0) -> 1903.0 | F69: 1346.7
A70: 11.904 | C70: 34233 | D70: 80463.08 | E70: =IF(D70<>0,('Modelo Atmosférico'!$B$9/'Modelo Atmosférico'!$B$10)*((POWER(D70/'Modelo Atmosférico'!$B$14,(-'Modelo Atmosférico'!$B$11*'Modelo Atmosférico'!$B$10)/('Modelo Atmosférico'!$B$12*'Modelo Atmosférico'!$B$13)))-1),0) -> 1902.4 | F70: 1346.2
A71: 12.096 | C71: 34229 | D71: 80474.12 | E71: =IF(D71<>0,('Modelo Atmosférico'!$B$9/'Modelo Atmosférico'!$B$10)*((POWER(D71/'Modelo Atmosférico'!$B$14,(-'Modelo Atmosférico'!$B$11*'Modelo Atmosférico'!$B$10)/('Modelo Atmosférico'!$B$12*'Modelo Atmosférico'!$B$13)))-1),0) -> 1901.3 | F71: 1345.1
A72: 12.288 | C72: 34225 | D72: 80485.16 | E72: =IF(D72<>0,('Modelo Atmosférico'!$B$9/'Modelo Atmosférico'!$B$10)*((POWER(D72/'Modelo Atmosférico'!$B$14,(-'Modelo Atmosférico'!$B$11*'Modelo Atmosférico'!$B$10)/('Modelo Atmosférico'!$B$12*'Modelo Atmosférico'!$B$13)))-1),0) -> 1900.2 | F72: 1343.9
A73: 12.48 | C73: 34221 | D73: 80496.2 | E73: =IF(D73<>0,('Modelo Atmosférico'!$B$9/'Modelo Atmosférico'!$B$10)*((POWER(D73/'Modelo Atmosférico'!$B$14,(-'Modelo Atmosférico'!$B$11*'Modelo Atmosférico'!$B$10)/('Modelo Atmosférico'!$B$12*'Modelo Atmosférico'!$B$13)))-1),0) -> 1899.1 | F73: 1342.8
A74: 12.672 | C74: 34218 | D74: 80504.48 | E74: =IF(D74<>0,('Modelo Atmosférico'!$B$9/'Modelo Atmosférico'!$B$10)*((POWER(D74/'Modelo Atmosférico'!$B$14,(-'Modelo Atmosférico'!$B$11*'Modelo Atmosférico'!$B$10)/('Modelo Atmosférico'!$B$12*'Modelo Atmosférico'!$B$13)))-1),0) -> 1898.3 | F74: 1342.0
A75: 12.864 | C75: 34214 | D75: 80515.52 | E75: =IF(D75<>0,('Modelo Atmosférico'!$B$9/'Modelo Atmosférico'!$B$10)*((POWER(D75/'Modelo Atmosférico'!$B$14,(-'Modelo Atmosférico'!$B$11*'Modelo Atmosférico'!$B$10)/('Modelo Atmosférico'!$B$12*'Modelo Atmosférico'!$B$13)))-1),0) -> 1897.2 | F75: 1340.9
A76: 13.056 | C76: 34213 | D76: 80518.28 | E76: =IF(D76<>0,('Modelo Atmosférico'!$B$9/'Modelo Atmosférico'!$B$10)*((POWER(D76/'Modelo Atmosférico'!$B$14,(-'Modelo Atmosférico'!$B$11*'Modelo Atmosférico'!$B$10)/('Modelo Atmosférico'!$B$12*'Modelo Atmosférico'!$B$13)))-1),0) -> 1896.9 | F76: 1340.6
A77: 13.248 | C77: 34206 | D77: 80537.6 | E77: =IF(D77<>0,('Modelo Atmosférico'!$B$9/'Modelo Atmosférico'!$B$10)*((POWER(D77/'Modelo Atmosférico'!$B$14,(-'Modelo Atmosférico'!$B$11*'Modelo Atmosférico'!$B$10)/('Modelo Atmosférico'!$B$12*'Modelo Atmosférico'!$B$13)))-1),0) -> 1894.9 | F77: 1338.7
A78: 13.44 | C78: 34205 | D78: 80540.36 | E78: =IF(D78<>0,('Modelo Atmosférico'!$B$9/'Modelo Atmosférico'!$B$10)*((POWER(D78/'Modelo Atmosférico'!$B$14,(-'Modelo Atmosférico'!$B$11*'Modelo Atmosférico'!$B$10)/('Modelo Atmosférico'!$B$12*'Modelo Atmosférico'!$B$13)))-1),0) -> 1894.7 | F78: 1338.4
A79: 13.632 | C79: 34199 | D79: 80556.92 | E79: =IF(D79<>0,('Modelo Atmosférico'!$B$9/'Modelo Atmosférico'!$B$10)*((POWER(D79/'Modelo Atmosférico'!$B$14,(-'Modelo Atmosférico'!$B$11*'Modelo Atmosférico'!$B$10)/('Modelo Atmosférico'!$B$12*'Modelo Atmosférico'!$B$13)))-1),0) -> 1893.0 | F79: 1336.8
A80: 13.824 | C80: 34196 | D80: 80565.2 | E80: =IF(D80<>0,('Modelo Atmosférico'!$B$9/'Modelo Atmosférico'!$B$10)*((POWER(D80/'Modelo Atmosférico'!$B$14,(-'Modelo Atmosférico'!$B$11*'Modelo Atmosférico'!$B$10)/('Modelo Atmosférico'!$B$12*'Modelo Atmosférico'!$B$13)))-1),0) -> 1892.2 | F80: 1335.9
A81: 14.016 | C81: 34193 | D81: 80573.48 | E81: =IF(D81<>0,('Modelo Atmosférico'!$B$9/'Modelo Atmosférico'!$B$10)*((POWER(D81/'Modelo Atmosférico'!$B$14,(-'Modelo Atmosférico'!$B$11*'Modelo Atmosférico'!$B$10)/('Modelo Atmosférico'!$B$12*'Modelo Atmosférico'!$B$13)))-1),0) -> 1891.4 | F81: 1335.1
A82: 14.208 | C82: 34190 | D82: 80581.77 | E82: =IF(D82<>0,('Modelo Atmosférico'!$B$9/'Modelo Atmosférico'!$B$10)*((POWER(D82/'Modelo Atmosférico'!$B$14,(-'Modelo Atmosférico'!$B$11*'Modelo Atmosférico'!$B$10)/('Modelo Atmosférico'!$B$12*'Modelo Atmosférico'!$B$13)))-1),0) -> 1890.5 | F82: 1334.3
A83: 14.4 | C83: 34186 | D83: 80592.8 | E83: =IF(D83<>0,('Modelo Atmosférico'!$B$9/'Modelo Atmosférico'!$B$10)*((POWER(D83/'Modelo Atmosférico'!$B$14,(-'Modelo Atmosférico'!$B$11*'Modelo Atmosférico'!$B$10)/('Modelo Atmosférico'!$B$12*'Modelo Atmosférico'!$B$13)))-1),0) -> 1889.4 | F83: 1333.2
A84: 14.592 | C84: 34181 | D84: 80606.61 | E84: =IF(D84<>0,('Modelo Atmosférico'!$B$9/'Modelo Atmosférico'!$B$10)*((POWER(D84/'Modelo Atmosférico'!$B$14,(-'Modelo Atmosférico'!$B$11*'Modelo Atmosférico'!$B$10)/('Modelo Atmosférico'!$B$12*'Modelo Atmosférico'!$B$13)))-1),0) -> 1888.0 | F84: 1331.8
A85: 14.784 | C85: 34177 | D85: 80617.65 | E85: =IF(D85<>0,('Modelo Atmosférico'!$B$9/'Modelo Atmosférico'!$B$10)*((POWER(D85/'Modelo Atmosférico'!$B$14,(-'Modelo Atmosférico'!$B$11*'Modelo Atmosférico'!$B$10)/('Modelo Atmosférico'!$B$12*'Modelo Atmosférico'!$B$13)))-1),0) -> 1886.9 | F85: 1330.7
A86: 14.976 | C86: 34169 | D86: 80639.73 | E86: =IF(D86<>0,('Modelo Atmosférico'!$B$9/'Modelo Atmosférico'!$B$10)*((POWER(D86/'Modelo Atmosférico'!$B$14,(-'Modelo Atmosférico'!$B$11*'Modelo Atmosférico'!$B$10)/('Modelo Atmosférico'!$B$12*'Modelo Atmosférico'!$B$13)))-1),0) -> 1884.7 | F86: 1328.5
A87: 15.168 | C87: 34168 | D87: 80642.49 | E87: =IF(D87<>0,('Modelo Atmosférico'!$B$9/'Modelo Atmosférico'!$B$10)*((POWER(D87/'Modelo Atmosférico'!$B$14,(-'Modelo Atmosférico'!$B$11*'Modelo Atmosférico'!$B$10)/('Modelo Atmosférico'!$B$12*'Modelo Atmosférico'!$B$13)))-1),0) -> 1884.4 | F87: 1328.2
A88: 15.36 | C88: 34165 | D88: 80650.77 | E88: =IF(D88<>0,('Modelo Atmosférico'!$B$9/'Modelo Atmosférico'!$B$10)*((POWER(D88/'Modelo Atmosférico'!$B$14,(-'Modelo Atmosférico'!$B$11*'Modelo Atmosférico'!$B$10)/('Modelo Atmosférico'!$B$12*'Modelo Atmosférico'!$B$13)))-1),0) -> 1883.6 | F88: 1327.4
A89: 15.552 | C89: 34162 | D89: 80659.05 | E89: =IF(D89<>0,('Modelo Atmosférico'!$B$9/'Modelo Atmosférico'!$B$10)*((POWER(D89/'Modelo Atmosférico'!$B$14,(-'Modelo Atmosférico'!$B$11*'Modelo Atmosférico'!$B$10)/('Modelo Atmosférico'!$B$12*'Modelo Atmosférico'!$B$13)))-1),0) -> 1882.8 | F89: 1326.5
A90: 15.744 | C90: 34159 | D90: 80667.34 | E90: =IF(D90<>0,('Modelo Atmosférico'!$B$9/'Modelo Atmosférico'!$B$10)*((POWER(D90/'Modelo Atmosférico'!$B$14,(-'Modelo Atmosférico'!$B$11*'Modelo Atmosférico'!$B$10)/('Modelo Atmosférico'!$B$12*'Modelo Atmosférico'!$B$13)))-1),0) -> 1881.9 | F90: 1325.7
A91: 15.936 | C91: 34157 | D91: 80672.86 | E91: =IF(D91<>0,('Modelo Atmosférico'!$B$9/'Modelo Atmosférico'!$B$10)*((POWER(D91/'Modelo Atmosférico'!$B$14,(-'Modelo Atmosférico'!$B$11*'Modelo Atmosférico'!$B$10)/('Modelo Atmosférico'!$B$12*'Modelo Atmosférico'!$B$13)))-1),0) -> 1881.4 | F91: 1325.1
A92: 16.128 | C92: 34152 | D92: 80686.66 | E92: =IF(D92<>0,('Modelo Atmosférico'!$B$9/'Modelo Atmosférico'!$B$10)*((POWER(D92/'Modelo Atmosférico'!$B$14,(-'Modelo Atmosférico'!$B$11*'Modelo Atmosférico'!$B$10)/('Modelo Atmosférico'!$B$12*'Modelo Atmosférico'!$B$13)))-1),0) -> 1880.0 | F92: 1323.8
A93: 16.32 | C93: 34152 | D93: 80686.66 | E93: =IF(D93<>0,('Modelo Atmosférico'!$B$9/'Modelo Atmosférico'!$B$10)*((POWER(D93/'Modelo Atmosférico'!$B$14,(-'Modelo Atmosférico'!$B$11*'Modelo Atmosférico'!$B$10)/('Modelo Atmosférico'!$B$12*'Modelo Atmosférico'!$B$13)))-1),0) -> 1880.0 | F93: 1323.8
A94: 16.512 | C94: 34147 | D94: 80700.46 | E94: =IF(D94<>0,('Modelo Atmosférico'!$B$9/'Modelo Atmosférico'!$B$10)*((POWER(D94/'Modelo Atmosférico'!$B$14,(-'Modelo Atmosférico'!$B$11*'Modelo Atmosférico'!$B$10)/('Modelo Atmosférico'!$B$12*'Modelo Atmosférico'!$B$13)))-1),0) -> 1878.6 | F94: 1322.4
A95: 16.704 | C95: 34146 | D95: 80703.22 | E95: =IF(D95<>0,('Modelo Atmosférico'!$B$9/'Modelo Atmosférico'!$B$10)*((POWER(D95/'Modelo Atmosférico'!$B$14,(-'Modelo Atmosférico'!$B$11*'Modelo Atmosférico'!$B$10)/('Modelo Atmosférico'!$B$12*'Modelo Atmosférico'!$B$13)))-1),0) -> 1878.4 | F95: 1322.1
A96: 16.896 | C96: 34140 | D96: 80719.78 | E96: =IF(D96<>0,('Modelo Atmosférico'!$B$9/'Modelo Atmosférico'!$B$10)*((POWER(D96/'Modelo Atmosférico'!$B$14,(-'Modelo Atmosférico'!$B$11*'Modelo Atmosférico'!$B$10)/('Modelo Atmosférico'!$B$12*'Modelo Atmosférico'!$B$13)))-1),0) -> 1876.7 | F96: 1320.4
A97: 17.088 | C97: 34140 | D97: 80719.78 | E97: =IF(D97<>0,('Modelo Atmosférico'!$B$9/'Modelo Atmosférico'!$B$10)*((POWER(D97/'Modelo Atmosférico'!$B$14,(-'Modelo Atmosférico'!$B$11*'Modelo Atmosférico'!$B$10)/('Modelo Atmosférico'!$B$12*'Modelo Atmosférico'!$B$13)))-1),0) -> 1876.7 | F97: 1320.4
A98: 17.28 | C98: 34135 | D98: 80733.59 | E98: =IF(D98<>0,('Modelo Atmosférico'!$B$9/'Modelo Atmosférico'!$B$10)*((POWER(D98/'Modelo Atmosférico'!$B$14,(-'Modelo Atmosférico'!$B$11*'Modelo Atmosférico'!$B$10)/('Modelo Atmosférico'!$B$12*'Modelo Atmosférico'!$B$13)))-1),0) -> 1875.3 | F98: 1319.1
A99: 17.472 | C99: 34131 | D99: 80744.63 | E99: =IF(D99<>0,('Modelo Atmosférico'!$B$9/'Modelo Atmosférico'!$B$10)*((POWER(D99/'Modelo Atmosférico'!$B$14,(-'Modelo Atmosférico'!$B$11*'Modelo Atmosférico'!$B$10)/('Modelo Atmosférico'!$B$12*'Modelo Atmosférico'!$B$13)))-1),0) -> 1874.2 | F99: =IF(D99<>0,E99-$E$3,0) -> 1318.0
A100: 17.664 | C100: 34130 | D100: 80747.39 | E100: =IF(D100<>0,('Modelo Atmosférico'!$B$9/'Modelo Atmosférico'!$B$10)*((POWER(D100/'Modelo Atmosférico'!$B$14,(-'Modelo Atmosférico'!$B$11*'Modelo Atmosférico'!$B$10)/('Modelo Atmosférico'!$B$12*'Modelo Atmosférico'!$B$13)))-1),0) -> 1873.9 | F100: 1317.7
A101: 17.856 | C101: 34125 | D101: 80761.19 | E101: =IF(D101<>0,('Modelo Atmosférico'!$B$9/'Modelo Atmosférico'!$B$10)*((POWER(D101/'Modelo Atmosférico'!$B$14,(-'Modelo Atmosférico'!$B$11*'Modelo Atmosférico'!$B$10)/('Modelo Atmosférico'!$B$12*'Modelo Atmosférico'!$B$13)))-1),0) -> 1872.6 | F101: 1316.3
A102: 18.048 | C102: 34122 | D102: 80769.47 | E102: =IF(D102<>0,('Modelo Atmosférico'!$B$9/'Modelo Atmosférico'!$B$10)*((POWER(D102/'Modelo Atmosférico'!$B$14,(-'Modelo Atmosférico'!$B$11*'Modelo Atmosférico'!$B$10)/('Modelo Atmosférico'!$B$12*'Modelo Atmosférico'!$B$13)))-1),0) -> 1871.7 | F102: 1315.5
A103: 18.24 | C103: 34121 | D103: 80772.23 | E103: =IF(D103<>0,('Modelo Atmosférico'!$B$9/'Modelo Atmosférico'!$B$10)*((POWER(D103/'Modelo Atmosférico'!$B$14,(-'Modelo Atmosférico'!$B$11*'Modelo Atmosférico'!$B$10)/('Modelo Atmosférico'!$B$12*'Modelo Atmosférico'!$B$13)))-1),0) -> 1871.5 | F103: 1315.2
A104: 18.432 | C104: 34115 | D104: 80788.8 | E104: =IF(D104<>0,('Modelo Atmosférico'!$B$9/'Modelo Atmosférico'!$B$10)*((POWER(D104/'Modelo Atmosférico'!$B$14,(-'Modelo Atmosférico'!$B$11*'Modelo Atmosférico'!$B$10)/('Modelo Atmosférico'!$B$12*'Modelo Atmosférico'!$B$13)))-1),0) -> 1869.8 | F104: 1313.5
A105: 18.624 | C105: 34111 | D105: 80799.84 | E105: =IF(D105<>0,('Modelo Atmosférico'!$B$9/'Modelo Atmosférico'!$B$10)*((POWER(D105/'Modelo Atmosférico'!$B$14,(-'Modelo Atmosférico'!$B$11*'Modelo Atmosférico'!$B$10)/('Modelo Atmosférico'!$B$12*'Modelo Atmosférico'!$B$13)))-1),0) -> 1868.7 | F105: 1312.4
A106: 18.816 | C106: 34108 | D106: 80808.12 | E106: =IF(D106<>0,('Modelo Atmosférico'!$B$9/'Modelo Atmosférico'!$B$10)*((POWER(D106/'Modelo Atmosférico'!$B$14,(-'Modelo Atmosférico'!$B$11*'Modelo Atmosférico'!$B$10)/('Modelo Atmosférico'!$B$12*'Modelo Atmosférico'!$B$13)))-1),0) -> 1867.9 | F106: 1311.6
A107: 19.008 | C107: 34105 | D107: 80816.4 | E107: =IF(D107<>0,('Modelo Atmosférico'!$B$9/'Modelo Atmosférico'!$B$10)*((POWER(D107/'Modelo Atmosférico'!$B$14,(-'Modelo Atmosférico'!$B$11*'Modelo Atmosférico'!$B$10)/('Modelo Atmosférico'!$B$12*'Modelo Atmosférico'!$B$13)))-1),0) -> 1867.0 | F107: 1310.8
A108: 19.2 | C108: 34101 | D108: 80827.44 | E108: =IF(D108<>0,('Modelo Atmosférico'!$B$9/'Modelo Atmosférico'!$B$10)*((POWER(D108/'Modelo Atmosférico'!$B$14,(-'Modelo Atmosférico'!$B$11*'Modelo Atmosférico'!$B$10)/('Modelo Atmosférico'!$B$12*'Modelo Atmosférico'!$B$13)))-1),0) -> 1865.9 | F108: 1309.7
A109: 19.392 | C109: 34099 | D109: 80832.97 | E109: =IF(D109<>0,('Modelo Atmosférico'!$B$9/'Modelo Atmosférico'!$B$10)*((POWER(D109/'Modelo Atmosférico'!$B$14,(-'Modelo Atmosférico'!$B$11*'Modelo Atmosférico'!$B$10)/('Modelo Atmosférico'!$B$12*'Modelo Atmosférico'!$B$13)))-1),0) -> 1865.4 | F109: 1309.1
A110: 19.584 | C110: 34092 | D110: 80852.28 | E110: =IF(D110<>0,('Modelo Atmosférico'!$B$9/'Modelo Atmosférico'!$B$10)*((POWER(D110/'Modelo Atmosférico'!$B$14,(-'Modelo Atmosférico'!$B$11*'Modelo Atmosférico'!$B$10)/('Modelo Atmosférico'!$B$12*'Modelo Atmosférico'!$B$13)))-1),0) -> 1863.5 | F110: 1307.2
A111: 19.776 | C111: 34091 | D111: 80855.05 | E111: =IF(D111<>0,('Modelo Atmosférico'!$B$9/'Modelo Atmosférico'!$B$10)*((POWER(D111/'Modelo Atmosférico'!$B$14,(-'Modelo Atmosférico'!$B$11*'Modelo Atmosférico'!$B$10)/('Modelo Atmosférico'!$B$12*'Modelo Atmosférico'!$B$13)))-1),0) -> 1863.2 | F111: 1306.9
A112: 19.968 | C112: 34091 | D112: 80855.05 | E112: =IF(D112<>0,('Modelo Atmosférico'!$B$9/'Modelo Atmosférico'!$B$10)*((POWER(D112/'Modelo Atmosférico'!$B$14,(-'Modelo Atmosférico'!$B$11*'Modelo Atmosférico'!$B$10)/('Modelo Atmosférico'!$B$12*'Modelo Atmosférico'!$B$13)))-1),0) -> 1863.2 | F112: 1306.9
A113: 20.16 | C113: 34086 | D113: 80868.85 | E113: =IF(D113<>0,('Modelo Atmosférico'!$B$9/'Modelo Atmosférico'!$B$10)*((POWER(D113/'Modelo Atmosférico'!$B$14,(-'Modelo Atmosférico'!$B$11*'Modelo Atmosférico'!$B$10)/('Modelo Atmosférico'!$B$12*'Modelo Atmosférico'!$B$13)))-1),0) -> 1861.8 | F113: 1305.5
A114: 20.352 | C114: 34085 | D114: 80871.61 | E114: =IF(D114<>0,('Modelo Atmosférico'!$B$9/'Modelo Atmosférico'!$B$10)*((POWER(D114/'Modelo Atmosférico'!$B$14,(-'Modelo Atmosférico'!$B$11*'Modelo Atmosférico'!$B$10)/('Modelo Atmosférico'!$B$12*'Modelo Atmosférico'!$B$13)))-1),0) -> 1861.5 | F114: 1305.3
A115: 20.544 | C115: 34081 | D115: 80882.66 | E115: =IF(D115<>0,('Modelo Atmosférico'!$B$9/'Modelo Atmosférico'!$B$10)*((POWER(D115/'Modelo Atmosférico'!$B$14,(-'Modelo Atmosférico'!$B$11*'Modelo Atmosférico'!$B$10)/('Modelo Atmosférico'!$B$12*'Modelo Atmosférico'!$B$13)))-1),0) -> 1860.4 | F115: 1304.2
A116: 20.736 | C116: 34076 | D116: 80896.45 | E116: =IF(D116<>0,('Modelo Atmosférico'!$B$9/'Modelo Atmosférico'!$B$10)*((POWER(D116/'Modelo Atmosférico'!$B$14,(-'Modelo Atmosférico'!$B$11*'Modelo Atmosférico'!$B$10)/('Modelo Atmosférico'!$B$12*'Modelo Atmosférico'!$B$13)))-1),0) -> 1859.0 | F116: 1302.8
A117: 20.928 | C117: 34073 | D117: 80904.73 | E117: =IF(D117<>0,('Modelo Atmosférico'!$B$9/'Modelo Atmosférico'!$B$10)*((POWER(D117/'Modelo Atmosférico'!$B$14,(-'Modelo Atmosférico'!$B$11*'Modelo Atmosférico'!$B$10)/('Modelo Atmosférico'!$B$12*'Modelo Atmosférico'!$B$13)))-1),0) -> 1858.2 | F117: 1302.0
A118: 21.12 | C118: 34071 | D118: 80910.26 | E118: =IF(D118<>0,('Modelo Atmosférico'!$B$9/'Modelo Atmosférico'!$B$10)*((POWER(D118/'Modelo Atmosférico'!$B$14,(-'Modelo Atmosférico'!$B$11*'Modelo Atmosférico'!$B$10)/('Modelo Atmosférico'!$B$12*'Modelo Atmosférico'!$B$13)))-1),0) -> 1857.7 | F118: 1301.4
A119: 21.312 | C119: 34066 | D119: 80924.06 | E119: =IF(D119<>0,('Modelo Atmosférico'!$B$9/'Modelo Atmosférico'!$B$10)*((POWER(D119/'Modelo Atmosférico'!$B$14,(-'Modelo Atmosférico'!$B$11*'Modelo Atmosférico'!$B$10)/('Modelo Atmosférico'!$B$12*'Modelo Atmosférico'!$B$13)))-1),0) -> 1856.3 | F119: 1300.0
A120: 21.504 | C120: 34063 | D120: 80932.34 | E120: =IF(D120<>0,('Modelo Atmosférico'!$B$9/'Modelo Atmosférico'!$B$10)*((POWER(D120/'Modelo Atmosférico'!$B$14,(-'Modelo Atmosférico'!$B$11*'Modelo Atmosférico'!$B$10)/('Modelo Atmosférico'!$B$12*'Modelo Atmosférico'!$B$13)))-1),0) -> 1855.5 | F120: 1299.2
A121: 21.696 | C121: 34059 | D121: 80943.39 | E121: =IF(D121<>0,('Modelo Atmosférico'!$B$9/'Modelo Atmosférico'!$B$10)*((POWER(D121/'Modelo Atmosférico'!$B$14,(-'Modelo Atmosférico'!$B$11*'Modelo Atmosférico'!$B$10)/('Modelo Atmosférico'!$B$12*'Modelo Atmosférico'!$B$13)))-1),0) -> 1854.3 | F121: 1298.1
A122: 21.888 | C122: 34057 | D122: 80948.91 | E122: =IF(D122<>0,('Modelo Atmosférico'!$B$9/'Modelo Atmosférico'!$B$10)*((POWER(D122/'Modelo Atmosférico'!$B$14,(-'Modelo Atmosférico'!$B$11*'Modelo Atmosférico'!$B$10)/('Modelo Atmosférico'!$B$12*'Modelo Atmosférico'!$B$13)))-1),0) -> 1853.8 | F122: 1297.5
A123: 22.08 | C123: 34051 | D123: 80965.47 | E123: =IF(D123<>0,('Modelo Atmosférico'!$B$9/'Modelo Atmosférico'!$B$10)*((POWER(D123/'Modelo Atmosférico'!$B$14,(-'Modelo Atmosférico'!$B$11*'Modelo Atmosférico'!$B$10)/('Modelo Atmosférico'!$B$12*'Modelo Atmosférico'!$B$13)))-1),0) -> 1852.1 | F123: 1295.9
A124: 22.272 | C124: 34049 | D124: 80970.98 | E124: =IF(D124<>0,('Modelo Atmosférico'!$B$9/'Modelo Atmosférico'!$B$10)*((POWER(D124/'Modelo Atmosférico'!$B$14,(-'Modelo Atmosférico'!$B$11*'Modelo Atmosférico'!$B$10)/('Modelo Atmosférico'!$B$12*'Modelo Atmosférico'!$B$13)))-1),0) -> 1851.6 | F124: 1295.3
A125: 22.464 | C125: 34046 | D125: 80979.27 | E125: =IF(D125<>0,('Modelo Atmosférico'!$B$9/'Modelo Atmosférico'!$B$10)*((POWER(D125/'Modelo Atmosférico'!$B$14,(-'Modelo Atmosférico'!$B$11*'Modelo Atmosférico'!$B$10)/('Modelo Atmosférico'!$B$12*'Modelo Atmosférico'!$B$13)))-1),0) -> 1850.8 | F125: 1294.5
A126: 22.656 | C126: 34043 | D126: 80987.55 | E126: =IF(D126<>0,('Modelo Atmosférico'!$B$9/'Modelo Atmosférico'!$B$10)*((POWER(D126/'Modelo Atmosférico'!$B$14,(-'Modelo Atmosférico'!$B$11*'Modelo Atmosférico'!$B$10)/('Modelo Atmosférico'!$B$12*'Modelo Atmosférico'!$B$13)))-1),0) -> 1849.9 | F126: 1293.7
A127: 22.848 | C127: 34039 | D127: 80998.59 | E127: =IF(D127<>0,('Modelo Atmosférico'!$B$9/'Modelo Atmosférico'!$B$10)*((POWER(D127/'Modelo Atmosférico'!$B$14,(-'Modelo Atmosférico'!$B$11*'Modelo Atmosférico'!$B$10)/('Modelo Atmosférico'!$B$12*'Modelo Atmosférico'!$B$13)))-1),0) -> 1848.8 | F127: 1292.6
A128: 23.04 | C128: 34037 | D128: 81004.12 | E128: =IF(D128<>0,('Modelo Atmosférico'!$B$9/'Modelo Atmosférico'!$B$10)*((POWER(D128/'Modelo Atmosférico'!$B$14,(-'Modelo Atmosférico'!$B$11*'Modelo Atmosférico'!$B$10)/('Modelo Atmosférico'!$B$12*'Modelo Atmosférico'!$B$13)))-1),0) -> 1848.3 | F128: 1292.0
A129: 23.232 | C129: 34033 | D129: 81015.16 | E129: =IF(D129<>0,('Modelo Atmosférico'!$B$9/'Modelo Atmosférico'!$B$10)*((POWER(D129/'Modelo Atmosférico'!$B$14,(-'Modelo Atmosférico'!$B$11*'Modelo Atmosférico'!$B$10)/('Modelo Atmosférico'!$B$12*'Modelo Atmosférico'!$B$13)))-1),0) -> 1847.2 | F129: 1290.9
A130: 23.424 | C130: 34029 | D130: 81026.2 | E130: =IF(D130<>0,('Modelo Atmosférico'!$B$9/'Modelo Atmosférico'!$B$10)*((POWER(D130/'Modelo Atmosférico'!$B$14,(-'Modelo Atmosférico'!$B$11*'Modelo Atmosférico'!$B$10)/('Modelo Atmosférico'!$B$12*'Modelo Atmosférico'!$B$13)))-1),0) -> 1846.1 | F130: 1289.8
A131: 23.616 | C131: 34028 | D131: 81028.97 | E131: =IF(D131<>0,('Modelo Atmosférico'!$B$9/'Modelo Atmosférico'!$B$10)*((POWER(D131/'Modelo Atmosférico'!$B$14,(-'Modelo Atmosférico'!$B$11*'Modelo Atmosférico'!$B$10)/('Modelo Atmosférico'!$B$12*'Modelo Atmosférico'!$B$13)))-1),0) -> 1845.8 | F131: 1289.6
A132: 23.808 | C132: 34023 | D132: 81042.77 | E132: =IF(D132<>0,('Modelo Atmosférico'!$B$9/'Modelo Atmosférico'!$B$10)*((POWER(D132/'Modelo Atmosférico'!$B$14,(-'Modelo Atmosférico'!$B$11*'Modelo Atmosférico'!$B$10)/('Modelo Atmosférico'!$B$12*'Modelo Atmosférico'!$B$13)))-1),0) -> 1844.4 | F132: 1288.2
A133: 24 | C133: 34021 | D133: 81048.3 | E133: =IF(D133<>0,('Modelo Atmosférico'!$B$9/'Modelo Atmosférico'!$B$10)*((POWER(D133/'Modelo Atmosférico'!$B$14,(-'Modelo Atmosférico'!$B$11*'Modelo Atmosférico'!$B$10)/('Modelo Atmosférico'!$B$12*'Modelo Atmosférico'!$B$13)))-1),0) -> 1843.9 | F133: 1287.6
A134: 24.192 | C134: 34016 | D134: 81062.09 | E134: =IF(D134<>0,('Modelo Atmosférico'!$B$9/'Modelo Atmosférico'!$B$10)*((POWER(D134/'Modelo Atmosférico'!$B$14,(-'Modelo Atmosférico'!$B$11*'Modelo Atmosférico'!$B$10)/('Modelo Atmosférico'!$B$12*'Modelo Atmosférico'!$B$13)))-1),0) -> 1842.5 | F134: 1286.2
A135: 24.384 | C135: 34014 | D135: 81067.62 | E135: =IF(D135<>0,('Modelo Atmosférico'!$B$9/'Modelo Atmosférico'!$B$10)*((POWER(D135/'Modelo Atmosférico'!$B$14,(-'Modelo Atmosférico'!$B$11*'Modelo Atmosférico'!$B$10)/('Modelo Atmosférico'!$B$12*'Modelo Atmosférico'!$B$13)))-1),0) -> 1842.0 | F135: 1285.7
A136: 24.576 | C136: 34010 | D136: 81078.66 | E136: =IF(D136<>0,('Modelo Atmosférico'!$B$9/'Modelo Atmosférico'!$B$10)*((POWER(D136/'Modelo Atmosférico'!$B$14,(-'Modelo Atmosférico'!$B$11*'Modelo Atmosférico'!$B$10)/('Modelo Atmosférico'!$B$12*'Modelo Atmosférico'!$B$13)))-1),0) -> 1840.9 | F136: 1284.6
A137: 24.768 | C137: 34006 | D137: 81089.7 | E137: =IF(D137<>0,('Modelo Atmosférico'!$B$9/'Modelo Atmosférico'!$B$10)*((POWER(D137/'Modelo Atmosférico'!$B$14,(-'Modelo Atmosférico'!$B$11*'Modelo Atmosférico'!$B$10)/('Modelo Atmosférico'!$B$12*'Modelo Atmosférico'!$B$13)))-1),0) -> 1839.8 | F137: 1283.5
A138: 24.96 | C138: 34002 | D138: 81100.75 | E138: =IF(D138<>0,('Modelo Atmosférico'!$B$9/'Modelo Atmosférico'!$B$10)*((POWER(D138/'Modelo Atmosférico'!$B$14,(-'Modelo Atmosférico'!$B$11*'Modelo Atmosférico'!$B$10)/('Modelo Atmosférico'!$B$12*'Modelo Atmosférico'!$B$13)))-1),0) -> 1838.7 | F138: 1282.4
A139: 25.152 | C139: 33998 | D139: 81111.79 | E139: =IF(D139<>0,('Modelo Atmosférico'!$B$9/'Modelo Atmosférico'!$B$10)*((POWER(D139/'Modelo Atmosférico'!$B$14,(-'Modelo Atmosférico'!$B$11*'Modelo Atmosférico'!$B$10)/('Modelo Atmosférico'!$B$12*'Modelo Atmosférico'!$B$13)))-1),0) -> 1837.6 | F139: 1281.3
A140: 25.344 | C140: 33996 | D140: 81117.31 | E140: =IF(D140<>0,('Modelo Atmosférico'!$B$9/'Modelo Atmosférico'!$B$10)*((POWER(D140/'Modelo Atmosférico'!$B$14,(-'Modelo Atmosférico'!$B$11*'Modelo Atmosférico'!$B$10)/('Modelo Atmosférico'!$B$12*'Modelo Atmosférico'!$B$13)))-1),0) -> 1837.0 | F140: 1280.7
A141: 25.536 | C141: 33990 | D141: 81133.88 | E141: =IF(D141<>0,('Modelo Atmosférico'!$B$9/'Modelo Atmosférico'!$B$10)*((POWER(D141/'Modelo Atmosférico'!$B$14,(-'Modelo Atmosférico'!$B$11*'Modelo Atmosférico'!$B$10)/('Modelo Atmosférico'!$B$12*'Modelo Atmosférico'!$B$13)))-1),0) -> 1835.3 | F141: 1279.1
A142: 25.728 | C142: 33987 | D142: 81142.16 | E142: =IF(D142<>0,('Modelo Atmosférico'!$B$9/'Modelo Atmosférico'!$B$10)*((POWER(D142/'Modelo Atmosférico'!$B$14,(-'Modelo Atmosférico'!$B$11*'Modelo Atmosférico'!$B$10)/('Modelo Atmosférico'!$B$12*'Modelo Atmosférico'!$B$13)))-1),0) -> 1834.5 | F142: 1278.3
A143: 25.92 | C143: 33981 | D143: 81158.72 | E143: =IF(D143<>0,('Modelo Atmosférico'!$B$9/'Modelo Atmosférico'!$B$10)*((POWER(D143/'Modelo Atmosférico'!$B$14,(-'Modelo Atmosférico'!$B$11*'Modelo Atmosférico'!$B$10)/('Modelo Atmosférico'!$B$12*'Modelo Atmosférico'!$B$13)))-1),0) -> 1832.9 | F143: 1276.6
A144: 26.112 | C144: 33978 | D144: 81167.01 | E144: =IF(D144<>0,('Modelo Atmosférico'!$B$9/'Modelo Atmosférico'!$B$10)*((POWER(D144/'Modelo Atmosférico'!$B$14,(-'Modelo Atmosférico'!$B$11*'Modelo Atmosférico'!$B$10)/('Modelo Atmosférico'!$B$12*'Modelo Atmosférico'!$B$13)))-1),0) -> 1832.0 | F144: 1275.8
A145: 26.304 | C145: 33975 | D145: 81175.29 | E145: =IF(D145<>0,('Modelo Atmosférico'!$B$9/'Modelo Atmosférico'!$B$10)*((POWER(D145/'Modelo Atmosférico'!$B$14,(-'Modelo Atmosférico'!$B$11*'Modelo Atmosférico'!$B$10)/('Modelo Atmosférico'!$B$12*'Modelo Atmosférico'!$B$13)))-1),0) -> 1831.2 | F145: 1275.0
A146: 26.496 | C146: 33971 | D146: 81186.33 | E146: =IF(D146<>0,('Modelo Atmosférico'!$B$9/'Modelo Atmosférico'!$B$10)*((POWER(D146/'Modelo Atmosférico'!$B$14,(-'Modelo Atmosférico'!$B$11*'Modelo Atmosférico'!$B$10)/('Modelo Atmosférico'!$B$12*'Modelo Atmosférico'!$B$13)))-1),0) -> 1830.1 | F146: 1273.9
A147: 26.688 | C147: 33967 | D147: 81197.38 | E147: =IF(D147<>0,('Modelo Atmosférico'!$B$9/'Modelo Atmosférico'!$B$10)*((POWER(D147/'Modelo Atmosférico'!$B$14,(-'Modelo Atmosférico'!$B$11*'Modelo Atmosférico'!$B$10)/('Modelo Atmosférico'!$B$12*'Modelo Atmosférico'!$B$13)))-1),0) -> 1829.0 | F147: 1272.8
A148: 26.88 | C148: 33964 | D148: 81205.66 | E148: =IF(D148<>0,('Modelo Atmosférico'!$B$9/'Modelo Atmosférico'!$B$10)*((POWER(D148/'Modelo Atmosférico'!$B$14,(-'Modelo Atmosférico'!$B$11*'Modelo Atmosférico'!$B$10)/('Modelo Atmosférico'!$B$12*'Modelo Atmosférico'!$B$13)))-1),0) -> 1828.2 | F148: 1271.9
A149: 27.072 | C149: 33963 | D149: 81208.42 | E149: =IF(D149<>0,('Modelo Atmosférico'!$B$9/'Modelo Atmosférico'!$B$10)*((POWER(D149/'Modelo Atmosférico'!$B$14,(-'Modelo Atmosférico'!$B$11*'Modelo Atmosférico'!$B$10)/('Modelo Atmosférico'!$B$12*'Modelo Atmosférico'!$B$13)))-1),0) -> 1827.9 | F149: 1271.7
A150: 27.264 | C150: 33958 | D150: 81222.22 | E150: =IF(D150<>0,('Modelo Atmosférico'!$B$9/'Modelo Atmosférico'!$B$10)*((POWER(D150/'Modelo Atmosférico'!$B$14,(-'Modelo Atmosférico'!$B$11*'Modelo Atmosférico'!$B$10)/('Modelo Atmosférico'!$B$12*'Modelo Atmosférico'!$B$13)))-1),0) -> 1826.5 | F150: 1270.3
A151: 27.456 | C151: 33955 | D151: 81230.51 | E151: =IF(D151<>0,('Modelo Atmosférico'!$B$9/'Modelo Atmosférico'!$B$10)*((POWER(D151/'Modelo Atmosférico'!$B$14,(-'Modelo Atmosférico'!$B$11*'Modelo Atmosférico'!$B$10)/('Modelo Atmosférico'!$B$12*'Modelo Atmosférico'!$B$13)))-1),0) -> 1825.7 | F151: 1269.5
A152: 27.648 | C152: 33951 | D152: 81241.55 | E152: =IF(D152<>0,('Modelo Atmosférico'!$B$9/'Modelo Atmosférico'!$B$10)*((POWER(D152/'Modelo Atmosférico'!$B$14,(-'Modelo Atmosférico'!$B$11*'Modelo Atmosférico'!$B$10)/('Modelo Atmosférico'!$B$12*'Modelo Atmosférico'!$B$13)))-1),0) -> 1824.6 | F152: 1268.4
A153: 27.84 | C153: 33950 | D153: 81244.31 | E153: =IF(D153<>0,('Modelo Atmosférico'!$B$9/'Modelo Atmosférico'!$B$10)*((POWER(D153/'Modelo Atmosférico'!$B$14,(-'Modelo Atmosférico'!$B$11*'Modelo Atmosférico'!$B$10)/('Modelo Atmosférico'!$B$12*'Modelo Atmosférico'!$B$13)))-1),0) -> 1824.3 | F153: 1268.1
A154: 28.032 | C154: 33946 | D154: 81255.35 | E154: =IF(D154<>0,('Modelo Atmosférico'!$B$9/'Modelo Atmosférico'!$B$10)*((POWER(D154/'Modelo Atmosférico'!$B$14,(-'Modelo Atmosférico'!$B$11*'Modelo Atmosférico'!$B$10)/('Modelo Atmosférico'!$B$12*'Modelo Atmosférico'!$B$13)))-1),0) -> 1823.3 | F154: 1267.0
A155: 28.224 | C155: 33941 | D155: 81269.16 | E155: =IF(D155<>0,('Modelo Atmosférico'!$B$9/'Modelo Atmosférico'!$B$10)*((POWER(D155/'Modelo Atmosférico'!$B$14,(-'Modelo Atmosférico'!$B$11*'Modelo Atmosférico'!$B$10)/('Modelo Atmosférico'!$B$12*'Modelo Atmosférico'!$B$13)))-1),0) -> 1821.9 | F155: 1265.6
A156: 28.416 | C156: 33939 | D156: 81274.68 | E156: =IF(D156<>0,('Modelo Atmosférico'!$B$9/'Modelo Atmosférico'!$B$10)*((POWER(D156/'Modelo Atmosférico'!$B$14,(-'Modelo Atmosférico'!$B$11*'Modelo Atmosférico'!$B$10)/('Modelo Atmosférico'!$B$12*'Modelo Atmosférico'!$B$13)))-1),0) -> 1821.3 | F156: 1265.1
A157: 28.608 | C157: 33936 | D157: 81282.97 | E157: =IF(D157<>0,('Modelo Atmosférico'!$B$9/'Modelo Atmosférico'!$B$10)*((POWER(D157/'Modelo Atmosférico'!$B$14,(-'Modelo Atmosférico'!$B$11*'Modelo Atmosférico'!$B$10)/('Modelo Atmosférico'!$B$12*'Modelo Atmosférico'!$B$13)))-1),0) -> 1820.5 | F157: 1264.2
A158: 28.8 | C158: 33934 | D158: 81288.48 | E158: =IF(D158<>0,('Modelo Atmosférico'!$B$9/'Modelo Atmosférico'!$B$10)*((POWER(D158/'Modelo Atmosférico'!$B$14,(-'Modelo Atmosférico'!$B$11*'Modelo Atmosférico'!$B$10)/('Modelo Atmosférico'!$B$12*'Modelo Atmosférico'!$B$13)))-1),0) -> 1820.0 | F158: 1263.7
A159: 28.992 | C159: 33929 | D159: 81302.29 | E159: =IF(D159<>0,('Modelo Atmosférico'!$B$9/'Modelo Atmosférico'!$B$10)*((POWER(D159/'Modelo Atmosférico'!$B$14,(-'Modelo Atmosférico'!$B$11*'Modelo Atmosférico'!$B$10)/('Modelo Atmosférico'!$B$12*'Modelo Atmosférico'!$B$13)))-1),0) -> 1818.6 | F159: 1262.3
A160: 29.184 | C160: 33923 | D160: 81318.86 | E160: =IF(D160<>0,('Modelo Atmosférico'!$B$9/'Modelo Atmosférico'!$B$10)*((POWER(D160/'Modelo Atmosférico'!$B$14,(-'Modelo Atmosférico'!$B$11*'Modelo Atmosférico'!$B$10)/('Modelo Atmosférico'!$B$12*'Modelo Atmosférico'!$B$13)))-1),0) -> 1816.9 | F160: 1260.7
A161: 29.376 | C161: 33920 | D161: 81327.14 | E161: =IF(D161<>0,('Modelo Atmosférico'!$B$9/'Modelo Atmosférico'!$B$10)*((POWER(D161/'Modelo Atmosférico'!$B$14,(-'Modelo Atmosférico'!$B$11*'Modelo Atmosférico'!$B$10)/('Modelo Atmosférico'!$B$12*'Modelo Atmosférico'!$B$13)))-1),0) -> 1816.1 | F161: 1259.9
A162: 29.568 | C162: 33916 | D162: 81338.18 | E162: =IF(D162<>0,('Modelo Atmosférico'!$B$9/'Modelo Atmosférico'!$B$10)*((POWER(D162/'Modelo Atmosférico'!$B$14,(-'Modelo Atmosférico'!$B$11*'Modelo Atmosférico'!$B$10)/('Modelo Atmosférico'!$B$12*'Modelo Atmosférico'!$B$13)))-1),0) -> 1815.0 | F162: 1258.8
A163: 29.76 | C163: 33913 | D163: 81346.47 | E163: =IF(D163<>0,('Modelo Atmosférico'!$B$9/'Modelo Atmosférico'!$B$10)*((POWER(D163/'Modelo Atmosférico'!$B$14,(-'Modelo Atmosférico'!$B$11*'Modelo Atmosférico'!$B$10)/('Modelo Atmosférico'!$B$12*'Modelo Atmosférico'!$B$13)))-1),0) -> 1814.2 | F163: =IF(D163<>0,E163-$E$3,0) -> 1257.9
A164: 29.952 | C164: 33912 | D164: 81349.23 | E164: =IF(D164<>0,('Modelo Atmosférico'!$B$9/'Modelo Atmosférico'!$B$10)*((POWER(D164/'Modelo Atmosférico'!$B$14,(-'Modelo Atmosférico'!$B$11*'Modelo Atmosférico'!$B$10)/('Modelo Atmosférico'!$B$12*'Modelo Atmosférico'!$B$13)))-1),0) -> 1813.9 | F164: 1257.7
A165: 30.144 | C165: 33907 | D165: 81363.03 | E165: =IF(D165<>0,('Modelo Atmosférico'!$B$9/'Modelo Atmosférico'!$B$10)*((POWER(D165/'Modelo Atmosférico'!$B$14,(-'Modelo Atmosférico'!$B$11*'Modelo Atmosférico'!$B$10)/('Modelo Atmosférico'!$B$12*'Modelo Atmosférico'!$B$13)))-1),0) -> 1812.5 | F165: 1256.3
A166: 30.336 | C166: 33903 | D166: 81374.08 | E166: =IF(D166<>0,('Modelo Atmosférico'!$B$9/'Modelo Atmosférico'!$B$10)*((POWER(D166/'Modelo Atmosférico'!$B$14,(-'Modelo Atmosférico'!$B$11*'Modelo Atmosférico'!$B$10)/('Modelo Atmosférico'!$B$12*'Modelo Atmosférico'!$B$13)))-1),0) -> 1811.4 | F166: 1255.2
A167: 30.528 | C167: 33899 | D167: 81385.13 | E167: =IF(D167<>0,('Modelo Atmosférico'!$B$9/'Modelo Atmosférico'!$B$10)*((POWER(D167/'Modelo Atmosférico'!$B$14,(-'Modelo Atmosférico'!$B$11*'Modelo Atmosférico'!$B$10)/('Modelo Atmosférico'!$B$12*'Modelo Atmosférico'!$B$13)))-1),0) -> 1810.3 | F167: 1254.1
A168: 30.72 | C168: 33895 | D168: 81396.16 | E168: =IF(D168<>0,('Modelo Atmosférico'!$B$9/'Modelo Atmosférico'!$B$10)*((POWER(D168/'Modelo Atmosférico'!$B$14,(-'Modelo Atmosférico'!$B$11*'Modelo Atmosférico'!$B$10)/('Modelo Atmosférico'!$B$12*'Modelo Atmosférico'!$B$13)))-1),0) -> 1809.2 | F168: 1253.0
A169: 30.912 | C169: 33892 | D169: 81404.45 | E169: =IF(D169<>0,('Modelo Atmosférico'!$B$9/'Modelo Atmosférico'!$B$10)*((POWER(D169/'Modelo Atmosférico'!$B$14,(-'Modelo Atmosférico'!$B$11*'Modelo Atmosférico'!$B$10)/('Modelo Atmosférico'!$B$12*'Modelo Atmosférico'!$B$13)))-1),0) -> 1808.4 | F169: 1252.2
A170: 31.104 | C170: 33888 | D170: 81415.5 | E170: =IF(D170<>0,('Modelo Atmosférico'!$B$9/'Modelo Atmosférico'!$B$10)*((POWER(D170/'Modelo Atmosférico'!$B$14,(-'Modelo Atmosférico'!$B$11*'Modelo Atmosférico'!$B$10)/('Modelo Atmosférico'!$B$12*'Modelo Atmosférico'!$B$13)))-1),0) -> 1807.3 | F170: 1251.1
A171: 31.296 | C171: 33886 | D171: 81421.02 | E171: =IF(D171<>0,('Modelo Atmosférico'!$B$9/'Modelo Atmosférico'!$B$10)*((POWER(D171/'Modelo Atmosférico'!$B$14,(-'Modelo Atmosférico'!$B$11*'Modelo Atmosférico'!$B$10)/('Modelo Atmosférico'!$B$12*'Modelo Atmosférico'!$B$13)))-1),0) -> 1806.8 | F171: 1250.5
A172: 31.488 | C172: 33882 | D172: 81432.06 | E172: =IF(D172<>0,('Modelo Atmosférico'!$B$9/'Modelo Atmosférico'!$B$10)*((POWER(D172/'Modelo Atmosférico'!$B$14,(-'Modelo Atmosférico'!$B$11*'Modelo Atmosférico'!$B$10)/('Modelo Atmosférico'!$B$12*'Modelo Atmosférico'!$B$13)))-1),0) -> 1805.7 | F172: 1249.4
A173: 31.68 | C173: 33880 | D173: 81437.58 | E173: =IF(D173<>0,('Modelo Atmosférico'!$B$9/'Modelo Atmosférico'!$B$10)*((POWER(D173/'Modelo Atmosférico'!$B$14,(-'Modelo Atmosférico'!$B$11*'Modelo Atmosférico'!$B$10)/('Modelo Atmosférico'!$B$12*'Modelo Atmosférico'!$B$13)))-1),0) -> 1805.1 | F173: 1248.9
A174: 31.872 | C174: 33878 | D174: 81443.1 | E174: =IF(D174<>0,('Modelo Atmosférico'!$B$9/'Modelo Atmosférico'!$B$10)*((POWER(D174/'Modelo Atmosférico'!$B$14,(-'Modelo Atmosférico'!$B$11*'Modelo Atmosférico'!$B$10)/('Modelo Atmosférico'!$B$12*'Modelo Atmosférico'!$B$13)))-1),0) -> 1804.6 | F174: 1248.3
A175: 32.064 | C175: 33875 | D175: 81451.39 | E175: =IF(D175<>0,('Modelo Atmosférico'!$B$9/'Modelo Atmosférico'!$B$10)*((POWER(D175/'Modelo Atmosférico'!$B$14,(-'Modelo Atmosférico'!$B$11*'Modelo Atmosférico'!$B$10)/('Modelo Atmosférico'!$B$12*'Modelo Atmosférico'!$B$13)))-1),0) -> 1803.8 | F175: 1247.5
A176: 32.256 | C176: 33872 | D176: 81459.67 | E176: =IF(D176<>0,('Modelo Atmosférico'!$B$9/'Modelo Atmosférico'!$B$10)*((POWER(D176/'Modelo Atmosférico'!$B$14,(-'Modelo Atmosférico'!$B$11*'Modelo Atmosférico'!$B$10)/('Modelo Atmosférico'!$B$12*'Modelo Atmosférico'!$B$13)))-1),0) -> 1802.9 | F176: 1246.7
A177: 32.448 | C177: 33868 | D177: 81470.72 | E177: =IF(D177<>0,('Modelo Atmosférico'!$B$9/'Modelo Atmosférico'!$B$10)*((POWER(D177/'Modelo Atmosférico'!$B$14,(-'Modelo Atmosférico'!$B$11*'Modelo Atmosférico'!$B$10)/('Modelo Atmosférico'!$B$12*'Modelo Atmosférico'!$B$13)))-1),0) -> 1801.8 | F177: 1245.6
A178: 32.64 | C178: 33862 | D178: 81487.28 | E178: =IF(D178<>0,('Modelo Atmosférico'!$B$9/'Modelo Atmosférico'!$B$10)*((POWER(D178/'Modelo Atmosférico'!$B$14,(-'Modelo Atmosférico'!$B$11*'Modelo Atmosférico'!$B$10)/('Modelo Atmosférico'!$B$12*'Modelo Atmosférico'!$B$13)))-1),0) -> 1800.2 | F178: 1243.9
A179: 32.832 | C179: 33858 | D179: 81498.33 | E179: =IF(D179<>0,('Modelo Atmosférico'!$B$9/'Modelo Atmosférico'!$B$10)*((POWER(D179/'Modelo Atmosférico'!$B$14,(-'Modelo Atmosférico'!$B$11*'Modelo Atmosférico'!$B$10)/('Modelo Atmosférico'!$B$12*'Modelo Atmosférico'!$B$13)))-1),0) -> 1799.1 | F179: 1242.8
A180: 33.024 | C180: 33854 | D180: 81509.38 | E180: =IF(D180<>0,('Modelo Atmosférico'!$B$9/'Modelo Atmosférico'!$B$10)*((POWER(D180/'Modelo Atmosférico'!$B$14,(-'Modelo Atmosférico'!$B$11*'Modelo Atmosférico'!$B$10)/('Modelo Atmosférico'!$B$12*'Modelo Atmosférico'!$B$13)))-1),0) -> 1798.0 | F180: 1241.7
A181: 33.216 | C181: 33851 | D181: 81517.66 | E181: =IF(D181<>0,('Modelo Atmosférico'!$B$9/'Modelo Atmosférico'!$B$10)*((POWER(D181/'Modelo Atmosférico'!$B$14,(-'Modelo Atmosférico'!$B$11*'Modelo Atmosférico'!$B$10)/('Modelo Atmosférico'!$B$12*'Modelo Atmosférico'!$B$13)))-1),0) -> 1797.2 | F181: 1240.9
A182: 33.408 | C182: 33849 | D182: 81523.17 | E182: =IF(D182<>0,('Modelo Atmosférico'!$B$9/'Modelo Atmosférico'!$B$10)*((POWER(D182/'Modelo Atmosférico'!$B$14,(-'Modelo Atmosférico'!$B$11*'Modelo Atmosférico'!$B$10)/('Modelo Atmosférico'!$B$12*'Modelo Atmosférico'!$B$13)))-1),0) -> 1796.6 | F182: 1240.4
A183: 33.6 | C183: 33847 | D183: 81528.7 | E183: =IF(D183<>0,('Modelo Atmosférico'!$B$9/'Modelo Atmosférico'!$B$10)*((POWER(D183/'Modelo Atmosférico'!$B$14,(-'Modelo Atmosférico'!$B$11*'Modelo Atmosférico'!$B$10)/('Modelo Atmosférico'!$B$12*'Modelo Atmosférico'!$B$13)))-1),0) -> 1796.1 | F183: 1239.8
A184: 33.792 | C184: 33843 | D184: 81539.75 | E184: =IF(D184<>0,('Modelo Atmosférico'!$B$9/'Modelo Atmosférico'!$B$10)*((POWER(D184/'Modelo Atmosférico'!$B$14,(-'Modelo Atmosférico'!$B$11*'Modelo Atmosférico'!$B$10)/('Modelo Atmosférico'!$B$12*'Modelo Atmosférico'!$B$13)))-1),0) -> 1795.0 | F184: 1238.7
A185: 33.984 | C185: 33839 | D185: 81550.79 | E185: =IF(D185<>0,('Modelo Atmosférico'!$B$9/'Modelo Atmosférico'!$B$10)*((POWER(D185/'Modelo Atmosférico'!$B$14,(-'Modelo Atmosférico'!$B$11*'Modelo Atmosférico'!$B$10)/('Modelo Atmosférico'!$B$12*'Modelo Atmosférico'!$B$13)))-1),0) -> 1793.9 | F185: 1237.6
A186: 34.176 | C186: 33836 | D186: 81559.07 | E186: =IF(D186<>0,('Modelo Atmosférico'!$B$9/'Modelo Atmosférico'!$B$10)*((POWER(D186/'Modelo Atmosférico'!$B$14,(-'Modelo Atmosférico'!$B$11*'Modelo Atmosférico'!$B$10)/('Modelo Atmosférico'!$B$12*'Modelo Atmosférico'!$B$13)))-1),0) -> 1793.1 | F186: 1236.8
A187: 34.368 | C187: 33832 | D187: 81570.12 | E187: =IF(D187<>0,('Modelo Atmosférico'!$B$9/'Modelo Atmosférico'!$B$10)*((POWER(D187/'Modelo Atmosférico'!$B$14,(-'Modelo Atmosférico'!$B$11*'Modelo Atmosférico'!$B$10)/('Modelo Atmosférico'!$B$12*'Modelo Atmosférico'!$B$13)))-1),0) -> 1792.0 | F187: 1235.7
A188: 34.56 | C188: 33827 | D188: 81583.92 | E188: =IF(D188<>0,('Modelo Atmosférico'!$B$9/'Modelo Atmosférico'!$B$10)*((POWER(D188/'Modelo Atmosférico'!$B$14,(-'Modelo Atmosférico'!$B$11*'Modelo Atmosférico'!$B$10)/('Modelo Atmosférico'!$B$12*'Modelo Atmosférico'!$B$13)))-1),0) -> 1790.6 | F188: 1234.3
A189: 34.752 | C189: 33824 | D189: 81592.2 | E189: =IF(D189<>0,('Modelo Atmosférico'!$B$9/'Modelo Atmosférico'!$B$10)*((POWER(D189/'Modelo Atmosférico'!$B$14,(-'Modelo Atmosférico'!$B$11*'Modelo Atmosférico'!$B$10)/('Modelo Atmosférico'!$B$12*'Modelo Atmosférico'!$B$13)))-1),0) -> 1789.8 | F189: 1233.5
A190: 34.944 | C190: 33820 | D190: 81603.25 | E190: =IF(D190<>0,('Modelo Atmosférico'!$B$9/'Modelo Atmosférico'!$B$10)*((POWER(D190/'Modelo Atmosférico'!$B$14,(-'Modelo Atmosférico'!$B$11*'Modelo Atmosférico'!$B$10)/('Modelo Atmosférico'!$B$12*'Modelo Atmosférico'!$B$13)))-1),0) -> 1788.7 | F190: 1232.4
A191: 35.136 | C191: 33818 | D191: 81608.78 | E191: =IF(D191<>0,('Modelo Atmosférico'!$B$9/'Modelo Atmosférico'!$B$10)*((POWER(D191/'Modelo Atmosférico'!$B$14,(-'Modelo Atmosférico'!$B$11*'Modelo Atmosférico'!$B$10)/('Modelo Atmosférico'!$B$12*'Modelo Atmosférico'!$B$13)))-1),0) -> 1788.1 | F191: 1231.9
A192: 35.328 | C192: 33814 | D192: 81619.82 | E192: =IF(D192<>0,('Modelo Atmosférico'!$B$9/'Modelo Atmosférico'!$B$10)*((POWER(D192/'Modelo Atmosférico'!$B$14,(-'Modelo Atmosférico'!$B$11*'Modelo Atmosférico'!$B$10)/('Modelo Atmosférico'!$B$12*'Modelo Atmosférico'!$B$13)))-1),0) -> 1787.0 | F192: 1230.8
A193: 35.52 | C193: 33813 | D193: 81622.58 | E193: =IF(D193<>0,('Modelo Atmosférico'!$B$9/'Modelo Atmosférico'!$B$10)*((POWER(D193/'Modelo Atmosférico'!$B$14,(-'Modelo Atmosférico'!$B$11*'Modelo Atmosférico'!$B$10)/('Modelo Atmosférico'!$B$12*'Modelo Atmosférico'!$B$13)))-1),0) -> 1786.8 | F193: 1230.5
A194: 35.712 | C194: 33807 | D194: 81639.16 | E194: =IF(D194<>0,('Modelo Atmosférico'!$B$9/'Modelo Atmosférico'!$B$10)*((POWER(D194/'Modelo Atmosférico'!$B$14,(-'Modelo Atmosférico'!$B$11*'Modelo Atmosférico'!$B$10)/('Modelo Atmosférico'!$B$12*'Modelo Atmosférico'!$B$13)))-1),0) -> 1785.1 | F194: 1228.9
A195: 35.904 | C195: 33803 | D195: 81650.2 | E195: =IF(D195<>0,('Modelo Atmosférico'!$B$9/'Modelo Atmosférico'!$B$10)*((POWER(D195/'Modelo Atmosférico'!$B$14,(-'Modelo Atmosférico'!$B$11*'Modelo Atmosférico'!$B$10)/('Modelo Atmosférico'!$B$12*'Modelo Atmosférico'!$B$13)))-1),0) -> 1784.0 | F195: 1227.8
A196: 36.096 | C196: 33801 | D196: 81655.72 | E196: =IF(D196<>0,('Modelo Atmosférico'!$B$9/'Modelo Atmosférico'!$B$10)*((POWER(D196/'Modelo Atmosférico'!$B$14,(-'Modelo Atmosférico'!$B$11*'Modelo Atmosférico'!$B$10)/('Modelo Atmosférico'!$B$12*'Modelo Atmosférico'!$B$13)))-1),0) -> 1783.5 | F196: 1227.2
A197: 36.288 | C197: 33796 | D197: 81669.52 | E197: =IF(D197<>0,('Modelo Atmosférico'!$B$9/'Modelo Atmosférico'!$B$10)*((POWER(D197/'Modelo Atmosférico'!$B$14,(-'Modelo Atmosférico'!$B$11*'Modelo Atmosférico'!$B$10)/('Modelo Atmosférico'!$B$12*'Modelo Atmosférico'!$B$13)))-1),0) -> 1782.1 | F197: 1225.9
A198: 36.48 | C198: 33792 | D198: 81680.57 | E198: =IF(D198<>0,('Modelo Atmosférico'!$B$9/'Modelo Atmosférico'!$B$10)*((POWER(D198/'Modelo Atmosférico'!$B$14,(-'Modelo Atmosférico'!$B$11*'Modelo Atmosférico'!$B$10)/('Modelo Atmosférico'!$B$12*'Modelo Atmosférico'!$B$13)))-1),0) -> 1781.0 | F198: 1224.8
A199: 36.672 | C199: 33790 | D199: 81686.09 | E199: =IF(D199<>0,('Modelo Atmosférico'!$B$9/'Modelo Atmosférico'!$B$10)*((POWER(D199/'Modelo Atmosférico'!$B$14,(-'Modelo Atmosférico'!$B$11*'Modelo Atmosférico'!$B$10)/('Modelo Atmosférico'!$B$12*'Modelo Atmosférico'!$B$13)))-1),0) -> 1780.5 | F199: 1224.2
A200: 36.864 | C200: 33786 | D200: 81697.14 | E200: =IF(D200<>0,('Modelo Atmosférico'!$B$9/'Modelo Atmosférico'!$B$10)*((POWER(D200/'Modelo Atmosférico'!$B$14,(-'Modelo Atmosférico'!$B$11*'Modelo Atmosférico'!$B$10)/('Modelo Atmosférico'!$B$12*'Modelo Atmosférico'!$B$13)))-1),0) -> 1779.4 | F200: 1223.1
A201: 37.056 | C201: 33784 | D201: 81702.66 | E201: =IF(D201<>0,('Modelo Atmosférico'!$B$9/'Modelo Atmosférico'!$B$10)*((POWER(D201/'Modelo Atmosférico'!$B$14,(-'Modelo Atmosférico'!$B$11*'Modelo Atmosférico'!$B$10)/('Modelo Atmosférico'!$B$12*'Modelo Atmosférico'!$B$13)))-1),0) -> 1778.8 | F201: 1222.6
... 47 more rows

Sheet Zerar o Altímetro
D10: CUIDADO:
D11: Ao clicar no botão acima, qualquer vôo armazenado no altímetro será apagado!!!
D12: Toda a memória do altímetro será preenchida com um valor constante equivalente à pressão atmosférica ao nível do mar (101325 Pa), ou seja, ZERO metros de altitude.
